Cogmind - Beta 9.4 *** ADVENTURER MODE // 2020.02.09 @ 07:58:01 Player: Huntingteckel Result: Destroyed by G-47 Trooper with Particle Gun Performance ------------- Evolutions (1) 500 Regions Visited (2) 400 Robots Destroyed (15) 75 Value Destroyed (428) 428 Prototype IDs (0) 0 Alien Tech Used (0) 0 Bonus (0) 0 TOTAL SCORE: 1403 Bonus ------- None Cogmind --------- Core Integrity 0/400 Matter 300/300 Energy 100/100 System Corruption 2% Temperature Cool (9) Movement Core (550) Ox10 Location -9/Materials Parts ------- > --- POWER (1) -------- (None) > --- PROPULSION (3) --- (None) > --- UTILITY (3) ------ High-capacity Storage Unit > --- WEAPON (2) ------- (None) > --- INVENTORY (12) --- Light Ion Engine Heavy Ion Engine Deuterium Engine Light Deuterium Engine Light Deuterium Engine Aluminum Leg Wheel Peak State ------------ > --- POWER ------------ Light Nuclear Core > --- PROPULSION ------- Aluminum Leg Aluminum Leg Aluminum Leg > --- UTILITY ---------- High-capacity Storage Unit Terrain Scanner > --- WEAPON ----------- Light Assault Rifle > --- INVENTORY -------- Light Ion Engine Deuterium Engine Light Deuterium Engine Light Deuterium Engine Aluminum Leg Wheel [Rating: 10] Favorites ----------- Power Light Nuclear Core Engine Light Ion Engine Power Core Light Nuclear Core Propulsion Aluminum Leg Leg Aluminum Leg Wheel Wheel Utility High-capacity Storage Unit Device Heat Sink Storage High-capacity Storage Unit Weapon Light Assault Rifle Energy Gun Small Laser Ballistic Gun Light Assault Rifle Build | -11 -10 -9 ------- Run | Scr Mat Mat Slots Evolved 2 | . . 2 Power . | . . . Propulsion 1 | . . 1 Utility 1 | . . 1 Weapon . | . . . Parts Attached 18 | 2 5 11 Power 3 | . . 3 Engine 1 | . . 1 Core 2 | . . 2 Reactor . | . . . Propulsion 6 | 2 . 4 Treads . | . . . Leg 4 | . . 4 Wheel 2 | 2 . . Hover . | . . . Flight . | . . . Utility 3 | . 2 1 Device 2 | . 1 1 Storage 1 | . 1 . Processor . | . . . Hackware . | . . . Protection . | . . . Artifact . | . . . Weapon 6 | . 3 3 Energy Gun 3 | . 1 2 Energy Cannon . | . . . Ballistic Gun 3 | . 2 1 Ballistic Cannon . | . . . Launcher . | . . . Special Weapon . | . . . Impact Weapon . | . . . Slashing Weapon . | . . . Piercing Weapon . | . . . Special Melee Weapon . | . . . Unidentified Prototypes . | . . . Parts Lost 17 | . 2 15 Power 2 | . . 2 Propulsion 6 | . . 6 Utility 2 | . . 2 Weapon 7 | . 2 5 Highest Loss Streak 7 | . 1 7 Average Slot Usage (%) 72 | . 96 62 Engine 5 | . 14 1 Core 6 | . . 8 Leg 17 | . . 25 Wheel 10 | . 28 2 Device 7 | . 11 6 Storage 11 | . 14 11 Energy Gun 5 | . 16 . Ballistic Gun 7 | . 10 6 Naked Turns . | . . . Heaviest Build 39 | 10 39 39 Greatest Support 30 | 20 20 30 Greatest Overweight (x) 12 | . 1 12 Average Overweight (x) 1 | . . 1 Largest Inventory Capacity 12 | 6 12 12 Average Capacity 11 | 6 10 12 Most Carried 11 | 6 11 8 Average Carried 6 | 6 7 5 Final Capacity 12 | 6 12 12 Final Carried 8 | 6 8 7 Class Distribution -------------------- 75% | Mutant 24% | Scavenger-Mutant Dominant Class ---------------- Mutant | -10/Materials Mutant | -9/Materials Resources | -11 -10 -9 ----------- Run | Scr Mat Mat Matter Collected 396 | 191 94 111 Remotely . | . . . Salvage Created 548 | . 360 188 Parts 34 | . 25 9 Haulers Intercepted . | . . . Recyclers Shooed . | . . . Parts Field Recycled . | . . . Retrieved Matter . | . . . Parts Self-Destructed . | . . . Prevented . | . . . Kills | -11 -10 -9 ------- Run | Scr Mat Mat Combat Hostiles Destroyed 13 | . 9 4 Melee 1 | . . 1 Guns 10 | . 7 3 AOE 2 | . 2 . Classes Destroyed 5 | . 4 1 Builder 1 | . 1 . Watcher 1 | . 1 . Swarmer 3 | . 3 . Grunt 9 | . 6 3 Sentry 1 | . . 1 Best Kill Streak 6 | . 6 2 Combat Bots Only 4 | . 4 2 Max Kills in Single Turn 2 | . 2 1 Gunslinging . | . . . Exploded 2 | . 2 . Melee 1 | . . 1 Uniques/NPCs Destroyed . | . . . Combat | -11 -10 -9 -------- Run | Scr Mat Mat Damage Taken 1570 | . 340 1230 Core 482 | . 74 408 Absorbed by Shields . | . . . Core Remaining (%) 85 | 100 70 . Volleys Fired 51 | . 26 25 Largest 2 | . 2 2 Hottest 90 | . 90 60 Shots Fired 89 | . 50 39 Gun 89 | . 50 39 Cannon . | . . . Launcher . | . . . Special . | . . . Kinetic 53 | . 21 32 Thermal 28 | . 21 7 Explosive . | . . . Electromagnetic 8 | . 8 . Robot Hit Streak 33 | . 33 22 Robot Miss Streak 2 | . 2 1 Penetration Max . | . . . Secondary Targets 2 | . 1 1 Max Gunslinging Chain 1 | . 1 1 Shots Hit Robots 77 | . 44 33 Core Hits 37 | . 22 15 Critical Hits . | . . . Critical Kills . | . . . Critical Parts Destroyed . | . . . Melee Attacks . | . . . Impact . | . . . Slashing . | . . . Piercing . | . . . Sneak Attacks . | . . . Combat Hostiles . | . . . Follow-up Attacks . | . . . Damage Inflicted 918 | . 600 318 Guns 766 | . 482 284 Cannons . | . . . Explosions 118 | . 118 . Melee . | . . . Ramming 34 | . . 34 Kinetic 356 | . 140 216 Thermal 429 | . 361 68 Explosive . | . . . Electromagnetic 99 | . 99 . Impact . | . . . Slashing . | . . . Piercing . | . . . Highest Corruption 2 | . . 2 Average Corruption 2 | . . 2 Corruption Purged . | . . . Effects 2 | . . 2 Message Errors 2 | . . 2 Overload Shots . | . . . Overflow Damage 6 | . 6 . Projectiles . | . . . Explosions 6 | . 6 . Melee . | . . . Knockbacks 1 | . . 1 Impact 1 | . . 1 Kinetic . | . . . Secondary . | . . . Self-Inflicted Damage 37 | . 32 5 Shots 1 | . 1 . Rammed 6 | . . 6 Targets Rammed 13 | . . 13 Kicked 7 | . . 7 Crushed . | . . . Highest Temperature 158 | . 158 55 Average Temperature 37 | . 43 24 Received Heat Transfer 933 | . 195 738 Siege Activations . | . . . Robots Corrupted . | . . . Combat Hostiles . | . . . Parts Fried . | . . . Impact Corruptions . | . . . Robots Melted . | . . . Combat Hostiles . | . . . Parts Melted 2 | . . 2 Heat Transferred 1030 | . 880 150 Parts Sabotaged . | . . . Parts Stolen . | . . . Parts Stripped . | . . . Power Chain Reactions 1 | . 1 . Missiles Intercepted . | . . . Alert | -11 -10 -9 ------- Run | Scr Mat Mat Peak Influence 232 | . 232 103 Average Influence 71 | . 104 57 Maximum Alert Level 1 | . 1 . Low Security (%) 91 | 100 72 100 Level 1 8 | . 27 . Level 2 . | . . . Level 3 . | . . . Level 4 . | . . . Level 5 . | . . . High Security . | . . . Max Security . | . . . Squads Dispatched . | . . . Investigation . | . . . Extermination . | . . . Reinforcement . | . . . Assault . | . . . Garrison . | . . . Intercept . | . . . Construction Impeded . | . . . Haulers Reinforced . | . . . Stealth | -11 -10 -9 --------- Run | Scr Mat Mat Distress Signals 5 | . 2 3 Communications Jammed . | . . . Distress Signals . | . . . Times Spotted 26 | . 12 14 Peak Tracking Total 6 | . 6 6 Tactical Retreats 1 | . . 1 Traps | -11 -10 -9 ------- Run | Scr Mat Mat Traps Triggered . | . . . Indirectly . | . . . Trap Hack Attempts . | . . . Triggered . | . . . Disarmed . | . . . Reprogrammed . | . . . Reused . | . . . Traps Extracted . | . . . Installed . | . . . Triggered . | . . . Machines | -11 -10 -9 ---------- Run | Scr Mat Mat Machines Disabled . | . . . Max in Single Turn . | . . . Machines Sabotaged . | . . . Garrisons Compromised . | . . . Overloaded Fab Kills . | . . . Fab Network Shutdowns . | . . . Hacking | -11 -10 -9 --------- Run | Scr Mat Mat Machines Accessed 3 | . 2 1 Terminals 2 | . 1 1 Fabricators . | . . . Repair Stations . | . . . Recycling Units 1 | . 1 . Scanalyzers . | . . . Garrison Access . | . . . Total Hacks 4 | . 3 1 Successful 4 | . 3 1 Failed . | . . . Catastrophic . | . . . Database Lockouts . | . . . Manual . | . . . Terminals 2 | . 1 1 Fabricators . | . . . Repair Stations . | . . . Recycling Units 2 | . 2 . Scanalyzers . | . . . Garrison Access . | . . . Terminal Hacks 2 | . 1 1 Record 2 | . 1 1 Fabricator Hacks . | . . . Repair Station Hacks . | . . . Recycling Unit Hacks 2 | . 2 . Process 1 | . 1 . Report Inventory 1 | . 1 . Scanalyzer . | . . . Garrison Access Hacks . | . . . Unauthorized Hacks . | . . . Terminals . | . . . Fabricators . | . . . Repair Stations . | . . . Recycling Units . | . . . Scanalyzers . | . . . Garrison Access . | . . . Data Cores Recovered . | . . . Used . | . . . Hacking Detections 1 | . . 1 Full Trace Events . | . . . Feedback Events . | . . . Feedback Blocked . | . . . Robot Schematics Acquired . | . . . Robots Built . | . . . Matter . | . . . Time . | . . . Total Robot Build Rating . | . . . Part Schematics Acquired . | . . . Parts Built . | . . . Matter . | . . . Time . | . . . Total Part Build Rating . | . . . Parts Repaired . | . . . Time . | . . . Parts Recycled . | . . . Recycled Matter 141 | . 141 . Retrieved Matter . | . . . Retrieved Components . | . . . Parts Scanalyzed . | . . . Part Schematics Acquired . | . . . Parts Damaged . | . . . Bothacking | -11 -10 -9 ------------ Run | Scr Mat Mat Used RIF Installer . | . . . Robots Hacked . | . . . Non-combat . | . . . Combat . | . . . Robot Hacks Applied . | . . . Relay Couplers Released . | . . . Robots Rewired . | . . . Allies Hacked . | . . . Hacks Repelled . | . . . Allies | -11 -10 -9 -------- Run | Scr Mat Mat Total Allies . | . . . Largest Group . | . . . Highest-Rated Group . | . . . Highest-Rated Ally . | . . . Total Orders . | . . . Ally Attacks . | . . . Total Damage . | . . . Kills . | . . . Allies Corrupted . | . . . Allies Melted . | . . . Intel | -11 -10 -9 ------- Run | Scr Mat Mat Robot Analysis Total . | . . . Derelict Logs Recovered . | . . . Drone Launches . | . . . Drone Recoveries . | . . . Exploration | -11 -10 -9 ------------- Run | Scr Mat Mat Turns Passed 1108 | 3 340 765 Spaces Moved 654 | 1 228 425 Core 7 | . . 7 Treads . | . . . Legs 365 | . . 365 Wheels 282 | 1 228 53 Hover . | . . . Flight . | . . . Fastest Speed 80 | 80 80 90 Average Speed 128 | 80 87 150 Slowest Speed 650 | 80 90 650 Overloaded Moves . | . . . Propulsion Burnouts . | . . . Robots Hopped . | . . . Cave-ins Triggered . | . . . Exploration Rate (%) 17 | 2 31 20 Regions Visited 2 Branch Regions . Pre-discovered Areas . | . . . Known Exits Taken . | . . . Unknown Exits Taken 2 | 1 1 . Scrap Searched . | . . . Spaces Dug . | . . . Terrain Destroyed 2 | . 2 . Melee . | . . . Projectile . | . . . AOE 2 | . 2 . Actions | -11 -10 -9 --------- Run | Scr Mat Mat Total 835 | 2 322 511 Wait 84 | . 55 29 Move 652 | . 227 425 Hop . | . . . Pick Up 14 | . 6 8 Fast Attach 1 | . 1 . Attach 11 | . 2 9 Detach . | . . . Swap 6 | 2 2 2 Drop 3 | . 3 . Fire 51 | . 26 25 Melee . | . . . Ram . | . . . Kick 13 | . . 13 Crush . | . . . Escape Stasis . | . . . Rewire . | . . . Trap . | . . . Miscellaneous . | . . . Route ------- -11/Scrapyard -10/Materials -9/Materials History --------- Turn | Location | Event 4 | -11/Scrapyard | Discovered new exit (range 0) 4 | -11/Scrapyard | Entered Materials 286 | -10/Materials | Discovered new exit (range 7) 311 | -10/Materials | Build established: Mutant 344 | -10/Materials | Entered another Materials area 344 | -9/Materials | Evolved 2 slots: Propulsion x1, Utility x1 481 | -9/Materials | Lost 7 parts (1p2n1u3w) 893 | -9/Materials | Core integrity fell below 50% 1095 | -9/Materials | Core integrity fell below 20% 1109 | -9/Materials | Destroyed by G-47 Trooper with Particle Gun Last Messages --------------- Acquired Aluminum Leg. Acquired 10 matter. K-01 Serf collects debris. W-16 Scout distress signal alerts nearby ally. Kicked W-16 Scout out of the way. T-07 Excavator is excavating. Acquired Sml. Laser. Acquired 3 matter. Acquired 1 matter. Sml. Laser destroyed. Acquired Prototype Engine. Aluminum Leg destroyed. DUHMH Q9JA0C1G|Y0YZQF%C7RNXO : Aluminum Leg destroyed. Slammed into G-47 Trooper. Aluminum Leg destroyed. W-16 Scout distress signal alerts nearby ally. Lgt. Nuclear Core destroyed. W-16 Scout distress signal alerts nearby ally. Map ----- +----------------------------------------------------+ | ????????????????????????# #????# ###+##### | | ????????????????????????# #????# #? | | ????????????????????????# #????# T #? | | ????????????????????????# #????# #? | | ?????????????????????? ?# #?#??# ########? | | ????????????????????????# #????## ##???????? | | ????????????????????????# #?????# #????????? | | ????????????????????????# #????## #????????? | | ??????????????????????### ####### #????#???? | | ??????????????????????# % #????????? | | ??????????????????????# #????????? | | ??????????????????###?# #????????? | | ??????????????????? ?# t ###############????????? | | ???????????????????? # k# #????????????? | | ???????????????# # # #????? ??????? | | ???????????????# / #????????????? | | ???????????????# # # #??#?????????? | | ???????????????#### # ## ###########?????????? | | ??????????????????##### ## % #?????????? | | ??????????? ######### # #?????????? | | ??????????? a k Y # """ """ #?????????? | | ?????????? + """ """ #?????????? | | ???????????! gg# """ """ #?????????? | | ??????????????######## # #?????????? | | ?????????????????????## w## ?#?????????? | | ??????????????????????# @############???????????? | | ??????????????????????# #??????????????????????? | | ??????????????????????# #??????????????????????? | | ??????????????????????# #??????????????????????? | | ??????????????????????# #??????????????????????? | | ??????????????????????# #??????????????????????? | | ??????????????????????# #??????????????????????? | | ??????????????????????# #??????????????????????? | | ?????????????????????? ??????????????????????? | | ??????????????????????r ??????????????????????? | | ??????????????????????#####??????????????????????? | | ?????????????????????????????????????????????????? | | ?????????????????????????????????????????????????? | | ?????????????????????????????????????????????????? | | ?????????????????????????????????????????????????? | | ?????????????????????????????????????????????????? | | ?????????????????????????????????????????????????? | | ?????????????????????????????????????????????????? | | ?????????????????????????????????????????????????? | | ?????????????????????????????????????????????????? | | ?????????????????????????????????????????????????? | | ?????????????????????????????????????????????????? | | ?????????????????????????????????????????????????? | | ?????????????????????????????????????????????????? | | ?????????????????????????????????????????????????? | +----------------------------------------------------+ Best States ------------- Heat Dissipation 38 Energy Generation 14 Energy Capacity 160 Matter Stores 300 Matter Capacity 300 Sight Range 16 Terrain Scan Range 14 Terrain Scan Density 10 Resistance: KI 20 Resistance: TH 20 Resistance: EX 20 Resistance: EM 20 Resistance: I 20 Resistance: S 20 Resistance: P 20 Evasion (%) 44 Offensive Hacking 10 Item Schematics ----------------- None Robot Schematics ------------------ None Fabricated ------------ Nothing Alien Tech Used ----------------- None Achievements -------------- None Challenges ------------ None Game ------ Seed FortressInertialCanceller Manual? 0 Play Time 00:16:55 Cumulative 15.2 hours Start 2020.02.08 @ 20:17:48 End 2020.02.09 @ 07:58:01 Sessions 2 Manual Loads 0 Difficulty Adventurer Special Mode None Game No. 19 Rogue 0 Adventurer 19 Explorer 0 Win Type - Total 0 Types 0/0/0/0/0/0/0 Lore% 2 Gallery% 20 Achievement% 16 Wizard Run 0 Options --------- ASCII 0 Keyboard 0 Movement Mouse Keybinds 0 Fullscreen 1 Font 14/SmallcapsLarge Map View 84x54 Tactical HUD 0 Map Filters NONE Filters NONE Steam 1 RUN: 4e69a53a-6245-4be8-8349-a49e7db33522